fUSD/lending_fUSD_20241109
["ID","MTS","AMOUNT","RATE_DAILY","PERIOD"]
[341710468,1731113445273,-702.77,0.00030044,2]
[341710469,1731113445283,-150.0,0.00030045,2]
[341710470,1731113445294,-150.0,0.00030048,2]
[341710471,1731113445304,-205.12733945,0.00030053,2]
[341710472,1731113445314,-150.0,0.00030053,2]
[341710473,1731113445323,-150.0,0.00030056,2]
[341710474,1731113445333,-150.0,0.00030056,2]
[341710475,1731113445343,-150.0,0.00030057,2]
[341710476,1731113445354,-150.0,0.00030058,2]
[341710477,1731113445364,-150.0,0.00030059,2]
[341710478,1731113445373,-150.0,0.00030062,2]
[341710479,1731113445383,-150.0,0.00030063,2]
[341710480,1731113445393,-150.0,0.00030064,2]
[341710481,1731113445402,-150.0,0.00030069,2]
[341710482,1731113445412,-150.0,0.00030071,2]
[341710483,1731113445422,-150.0,0.00030072,2]
[341710484,1731113445431,-150.0,0.00030083,2]
[341710487,1731113445440,-150.0,0.00030084,2]
[341710488,1731113445450,-150.0,0.00030084,2]
[341710489,1731113445459,-150.0,0.00030088,2]
[341710490,1731113445470,-150.0,0.00030089,2]
[341710491,1731113445479,-150.0,0.0003009,2]
[341710492,1731113445488,-150.0,0.00030093,2]
[341710494,1731113445498,-150.0,0.00030094,2]
[341710495,1731113445507,-150.0,0.00030094,2]
[341710496,1731113445516,-150.0,0.00030095,2]
[341710497,1731113445525,-150.0,0.00030097,2]
[341710498,1731113445534,-150.0,0.00030097,2]
[341710499,1731113445543,-150.0,0.00030098,2]
[341710500,1731113445552,-150.0,0.00030099,2]
[341710503,1731113445561,-398.0,0.000301,14]
[341710505,1731113445570,-730.89,0.000301,2]
[341710507,1731113445580,-797.0,0.000301,14]
[341710509,1731113445589,-196.0,0.000301,14]
[341710510,1731113445599,-150.0,0.000301,2]
[341710512,1731113445608,-2937.37424578,0.000301,2]
[341710514,1731113445619,-151.0,0.000301,7]
[341710516,1731113445628,-150.0,0.000301,11]
[341710517,1731113445638,-150.0,0.000301,2]
[341710518,1731113445647,-150.0,0.00030106,2]
[341710519,1731113445656,-150.0,0.00030108,2]
[341710520,1731113445666,-150.0,0.00030109,2]
[341710521,1731113445676,-150.0,0.00030109,2]
[341710522,1731113445685,-150.0,0.0003011,2]
[341710523,1731113445695,-412.26295698,0.0003011,2]
[341710524,1731113445704,-150.0,0.00030111,2]
[341710525,1731113445714,-37436.15402416,0.00030115,2]
[341710526,1731113446000,-456.9,0.00029136,7]
[341710527,1731113446011,-300.0,0.00029846,2]
[341710528,1731113446021,-150.0,0.00029882,2]
[341710529,1731113446031,-780.76,0.00029989,10]
[341710530,1731113446041,-150.0,0.00030059,2]
[341710531,1731113446049,-7855.74741991,0.00030115,2]
[341710532,1731113446061,-3187.88732942,0.00030115,2]
[341710533,1731113446248,-146.52646162,0.000299,2]
[341710534,1731113446260,-627.56374847,0.000299,2]
[341710535,1731113446269,-1141.26371253,0.00030115,2]
[341710536,1731113446280,-598.66235532,0.00030115,2]
[341710538,1731113562313,163.62,0.00015342,2]
[341710540,1731113646476,150.0,0.00027,60]
[341710543,1731114003083,500.0,0.0001726,2]
[341710544,1731114003477,356.89907696,0.0001726,2]
[341710547,1731114281374,154.14,0.00015342,2]
[341710548,1731114425145,-328.72283939,0.00021,2]
[341710550,1731114426319,-121.27716061,0.00021,2]
[341710551,1731114426342,-1042.84057677,0.00021965,2]
[341710552,1731114443003,-10.15942323,0.00021965,2]
[341710553,1731114443024,-1053.0,0.00023121,2]
[341710554,1731114443046,-106.10431782,0.00024338,2]
[341710555,1731114473969,200.0,0.00026,120]
[341710556,1731114493135,300.0,0.00027,120]
[341710559,1731114545094,-946.89568218,0.00024338,2]
[341710560,1731114545116,-3722.3787881,0.00024397,2]
[341710561,1731114545136,-500.0,0.00024932,2]
[341710562,1731114545160,-1053.0,0.00025619,2]
[341710563,1731114545180,-771.83,0.00026729,2]
[341710564,1731114545201,-1053.0,0.00026968,2]
[341710565,1731114545223,-175.14,0.00027097,2]
[341710574,1731114631783,-500.0,0.000274,120]
[341710575,1731114631793,-152.0,0.00027906,3]
[341710576,1731114631802,-224.68,0.00028,120]
[341710577,1731114631850,-275.32,0.00028,120]
[341710578,1731114631859,-67.48521869,0.00028069,2]
[341710579,1731114631871,-232.71478131,0.00028069,2]
[341710580,1731114631880,-1253.0,0.00028305,2]
[341710581,1731114631889,-85.33233227,0.00028305,2]
[341710582,1731114631902,-64.66766773,0.00028305,2]
[341710583,1731114631911,-559.0,0.00028305,2]
[341710584,1731114631921,-1989.0,0.00028305,2]
[341710585,1731114631931,-1921.0,0.00028305,2]
[341710586,1731114631940,-522.144914,0.00028305,2]
[341710587,1731114632190,-129.34647753,0.00028305,2]
[341710588,1731114632202,-1034.46527114,0.00028305,2]
[341710589,1731114632213,-700.0,0.00028305,2]
[341710590,1731114632225,-523.04333733,0.00028305,2]
[341710591,1731114632234,-921.0,0.00028305,2]
[341710592,1731114632244,-1390.551,0.00028305,2]
[341710593,1731114632253,-813.0,0.00028305,2]
[341710595,1731114632263,-2259.2411678,0.00028305,2]
[341710699,1731114637849,-1203.7588322,0.00028305,2]
[341710700,1731114637858,-114.49536794,0.00028316,5]
[341710701,1731114638024,-938.50463206,0.00028316,5]
[341710702,1731114638033,-300.2,0.0002852,2]
[341710703,1731114638042,-1000.0,0.00028539,2]
[341710704,1731114638052,-309.08,0.00028568,120]
[341710705,1731114638062,-152.0,0.00028586,4]
[341710706,1731114638072,-250.0,0.00028701,2]
[341710707,1731114638081,-524.65,0.00028712,2]
[341710708,1731114638091,-747.51,0.00028727,2]
[341710709,1731114638100,-166.84,0.00028735,2]
[341710710,1731114638109,-253.71,0.00028739,2]
[341710711,1731114638118,-2083.35,0.00028744,2]
[341710712,1731114638127,-215.48,0.000289,30]
[341710713,1731114638137,-11763.6263,0.00028956,2]
[341710714,1731114638146,-300.2,0.00028971,2]
[341710715,1731114638157,-771.83,0.00028993,2]
[341710716,1731114638166,-362.92,0.00029115,120]
[341710717,1731114638176,-152.0,0.00029266,5]
[341710718,1731114638186,-5924.0,0.00029289,2]
[341710719,1731114638195,-13618.0,0.00029289,2]
[341710720,1731114638205,-1158.0,0.00029289,2]
[341710721,1731114638215,-150.0,0.00029289,2]
[341710722,1731114638224,-1090.0,0.00029289,2]
[341710723,1731114638234,-10576.7113,0.00029412,2]
[341710724,1731114638243,-300.2,0.00029422,2]
[341710725,1731114638252,-1589.49819104,0.00029493,2]
[341710726,1731114638261,-458.574,0.00029593,2]
[341710727,1731114638270,-3002.92862908,0.00029648,2]
[341710728,1731114638280,-363.0,0.000297,2]
[341710729,1731114638289,-1000.0,0.000297,2]
[341710730,1731114638298,-229.0,0.000297,2]
[341710731,1731114638307,-1053.0,0.00029732,5]
[341710732,1731114638317,-164.3308,0.000298,2]
[341710734,1731114638326,-150.0,0.00029861,2]
[341710736,1731114638335,-150.0,0.00029863,2]
[341710737,1731114638344,-1500.0,0.00029866,2]
[341710738,1731114638353,-300.0,0.00029866,2]
[341710739,1731114638362,-150.0,0.00029869,2]
[341710740,1731114638371,-150.0,0.00029869,2]
[341710742,1731114638380,-150.0,0.00029872,2]
[341710744,1731114638389,-300.2,0.00029873,2]
[341710767,1731114638599,-150.0,0.00029874,2]
[341710771,1731114638627,-2000.0,0.00029874,5]
[341710773,1731114638636,-150.0,0.00029877,2]
[341710775,1731114638645,-150.0,0.00029879,2]
[341710777,1731114638656,-150.0,0.00029879,2]
[341710779,1731114638665,-150.0,0.00029882,2]
[341710781,1731114638674,-150.0,0.00029884,2]
[341710783,1731114638683,-150.0,0.00029886,2]
[341710785,1731114638692,-150.0,0.00029887,2]
[341710787,1731114638702,-150.0,0.00029889,2]
[341710789,1731114638711,-150.0,0.0002989,2]
[341710791,1731114638721,-65.15048469,0.00029893,2]
[341710793,1731114638732,-759.42965711,0.00029893,2]
[341710797,1731114638763,-764.32,0.00029893,2]
[341710908,1731114640059,-7584.3882582,0.00029893,2]
[341710909,1731114640069,-150.0,0.00029893,2]
[341710910,1731114640079,-1500.0,0.00029893,2]
[341710911,1731114640088,-150.0,0.00029897,2]
[341710912,1731114640097,-11803.6919,0.000299,2]
[341710913,1731114640106,-2765.3823,0.000299,2]
[341710914,1731114640116,-19661.35225761,0.000299,7]
[341710915,1731114640146,-1219.64774239,0.000299,7]
[341710916,1731114640156,-498.78682246,0.000299,15]
[341710917,1731114640165,-72.14543513,0.00029906,2]
[341710918,1731114640177,-998.45,0.00029906,2]
[341710919,1731114640241,-429.40456487,0.00029906,2]
[341710920,1731114640250,-300.0,0.00029907,2]
[341710921,1731114640260,-150.0,0.00029909,2]
[341710922,1731114640269,-150.0,0.00029914,2]
[341710923,1731114640278,-498.78682238,0.00029915,15]
[341710924,1731114640288,-150.0,0.00029916,2]
[341710925,1731114640297,-150.0,0.00029917,2]
[341710926,1731114640307,-294.551,0.00029918,24]
[341710927,1731114640316,-278.84198865,0.00029918,2]
[341710928,1731114640325,-150.0,0.00029918,2]
[341710929,1731114640334,-48.88475513,0.00029919,2]
[341710937,1731114642982,-101.11524487,0.00029919,2]
[341710938,1731114642992,-338.10247928,0.00029919,2]
[341710939,1731114643002,-1589.49819104,0.0002992,2]
[341710940,1731114643011,-192.0321,0.0002992,2]
[341710941,1731114643020,-156.849,0.0002992,2]
[341710942,1731114643030,-150.0,0.00029923,2]
[341710943,1731114643039,-150.0,0.00029924,2]
[341710944,1731114643049,-150.0,0.00029927,2]
[341710945,1731114643059,-150.0,0.0002993,2]
[341710946,1731114643068,-19.6867378,0.0002993,2]
[341710947,1731114643132,-130.3132622,0.0002993,2]
[341710948,1731114643142,-498.78682238,0.0002993,15]
[341710949,1731114643151,-150.0,0.00029933,2]
[341710950,1731114643161,-150.0,0.00029934,2]
[341710951,1731114643170,-338.10247925,0.00029936,2]
[341710952,1731114643180,-150.0,0.00029936,2]
[341710953,1731114643189,-150.0,0.00029937,2]
[341710954,1731114643198,-150.0,0.00029938,2]
[341710955,1731114643207,-150.0,0.00029938,2]
[341710956,1731114643217,-150.0,0.00029939,2]
[341710957,1731114643226,-150.0,0.0002994,2]
[341710958,1731114643236,-1000.0,0.0002994,10]
[341710959,1731114643245,-150.0,0.00029941,2]
[341710960,1731114643254,-498.78682238,0.00029945,15]
[341710961,1731114643263,-152.0,0.00029947,6]
[341710962,1731114643272,-150.0,0.00029947,2]
[341710963,1731114643281,-150.0,0.0002995,2]
[341710964,1731114643290,-300.0,0.0002995,2]
[341710965,1731114643299,-338.10247925,0.00029952,2]
[341710966,1731114643308,-150.0,0.00029953,2]
[341710967,1731114643318,-150.0,0.00029954,2]
[341710968,1731114643327,-150.0,0.00029957,2]
[341710969,1731114643336,-150.0,0.00029959,2]
[341710970,1731114643345,-150.0,0.00029959,2]
[341710971,1731114643356,-150.0,0.0002996,2]
[341710972,1731114643365,-150.0,0.0002996,2]
[341710973,1731114643374,-300.0,0.0002996,2]
[341710974,1731114643383,-1000.0,0.0002996,10]
[341710975,1731114643392,-498.78682238,0.0002996,15]
[341710976,1731114643401,-150.0,0.00029964,2]
[341710977,1731114643412,-150.0,0.00029969,2]
[341710978,1731114643421,-338.10247925,0.00029969,2]
[341710979,1731114643430,-150.0,0.0002997,2]
[341710980,1731114643439,-150.0,0.00029972,2]
[341710981,1731114643448,-500.0,0.00029973,2]
[341710982,1731114643457,-150.0,0.00029973,2]
[341710983,1731114643466,-498.78682238,0.00029976,15]
[341710984,1731114643475,-150.0,0.00029977,2]
[341710985,1731114643484,-1000.0,0.0002998,10]
[341710986,1731114643493,-150.0,0.00029983,2]
[341710987,1731114643502,-150.0,0.00029983,2]
[341710988,1731114643511,-150.0,0.00029984,2]
[341710989,1731114643520,-300.0,0.00029985,2]
[341710990,1731114643529,-338.10247925,0.00029986,2]
[341710991,1731114643538,-150.0,0.00029987,2]
[341710992,1731114643547,-498.78682238,0.00029991,15]
[341710993,1731114643556,-150.0,0.00029993,2]
[341710994,1731114643565,-1500.0,0.00029993,2]
[341710995,1731114643574,-150.0,0.00029997,2]
[341710996,1731114643583,-151.0,0.0003,120]
[341710997,1731114643593,-151.0,0.0003,120]
[341710998,1731114643602,-2000.5045,0.0003,2]
[341710999,1731114643611,-2000.0,0.0003,2]
[341711000,1731114643621,-150.0,0.0003,2]
[341711001,1731114643630,-500.0,0.0003,120]
[341711002,1731114643639,-1000.0,0.0003,11]
[341711003,1731114643648,-92948.24948161,0.0003,2]
[341711004,1731114643660,-42315.75051839,0.0003,2]
[341711005,1731114643669,-150.0,0.00030002,2]
[341711006,1731114643678,-338.10247925,0.00030003,2]
[341711007,1731114643688,-150.0,0.00030003,2]
[341711008,1731114643697,-150.0,0.00030004,2]
[341711009,1731114643706,-498.78682238,0.00030006,15]
[341711010,1731114643715,-205.12733945,0.00030007,2]
[341711012,1731114643724,-150.0,0.00030007,2]
[341711013,1731114643733,-150.0,0.00030008,2]
[341711014,1731114643742,-150.0,0.00030011,2]
[341711015,1731114643751,-4337.2445,0.00030015,2]
[341711016,1731114643759,-1713.038,0.00030015,2]
[341711017,1731114643768,-150.0,0.00030015,2]
[341711018,1731114643777,-311.42792814,0.00030015,2]
[341711019,1731114643786,-150.0,0.00030016,2]
[341711020,1731114643795,-150.0,0.00030017,2]
[341711021,1731114643805,-150.0,0.00030017,2]
[341711022,1731114643814,-500.0,0.00030019,2]
[341711023,1731114643824,-247.86283743,0.00030019,2]
[341711024,1731114643833,-500.0,0.00030019,2]
[341711025,1731114643842,-450.0,0.00030019,2]
[341711026,1731114643854,-338.10247925,0.00030019,2]
[341711027,1731114643863,-92457.6118,0.0003002,2]
[341711028,1731114643872,-170.99604331,0.0003002,2]
[341711029,1731114643881,-151.0,0.0003002,7]
[341711030,1731114643891,-151.0,0.0003002,7]
[341711031,1731114643901,-151.0,0.0003002,7]
[341711032,1731114643911,-151.0,0.0003002,7]
[341711033,1731114643922,-261.698085,0.0003002,7]
[341711034,1731114643930,-1000.0,0.0003002,11]
[341711035,1731114643939,-261.698085,0.0003002,7]
[341711036,1731114643948,-151.0,0.0003002,7]
[341711037,1731114643958,-151.0,0.0003002,7]
[341711038,1731114643967,-151.0,0.0003002,7]
[341711039,1731114643977,-338.147333,0.0003002,7]
[341711040,1731114643986,-338.147333,0.0003002,7]
[341711041,1731114643995,-151.0,0.0003002,7]
[341711042,1731114644004,-151.0,0.0003002,7]
[341711043,1731114644014,-335.154933,0.0003002,7]
[341711044,1731114644023,-335.154933,0.0003002,7]
[341711045,1731114644032,-1728.615732,0.0003002,7]
[341711046,1731114644041,-151.0,0.0003002,7]
[341711047,1731114644051,-1728.615732,0.0003002,7]
[341711048,1731114644060,-158.903963,0.0003002,7]
[341711049,1731114644069,-151.0,0.0003002,7]
[341711050,1731114644079,-151.0,0.0003002,7]
[341711051,1731114644088,-498.78682238,0.00030021,15]
[341711052,1731114644098,-150.0,0.00030022,2]
[341711053,1731114644107,-150.0,0.00030028,2]
[341711054,1731114644116,-1500.0,0.00030031,2]
[341711055,1731114644126,-498.78682238,0.00030036,15]
[341711056,1731114644135,-338.10247925,0.00030036,2]
[341711057,1731114644144,-1061.1653058,0.00030036,2]
[341711058,1731114644153,-150.0,0.00030039,2]
[341711059,1731114644163,-150.0,0.00030039,2]
[341711060,1731114644172,-150.0,0.0003004,2]
[341711061,1731114644182,-300.0,0.0003004,2]
[341711062,1731114644192,-1000.0,0.0003004,11]
[341711063,1731114644201,-150.0,0.00030045,2]
[341711064,1731114644211,-150.0,0.00030049,2]
[341711065,1731114644220,-150.0,0.00030053,2]
[341711066,1731114644229,-500.0,0.00030053,2]
[341711067,1731114644238,-500.0,0.00030053,2]
[341711068,1731114644248,-150.0,0.00030057,2]
[341711069,1731114644258,-1000.0,0.0003006,11]
[341711070,1731114644267,-150.0,0.00030065,2]
[341711071,1731114644277,-150.0,0.00030069,2]
[341711072,1731114644287,-300.0,0.0003007,2]
[341711073,1731114644296,-150.0,0.0003008,2]
[341711074,1731114644305,-1000.0,0.0003008,11]
[341711075,1731114644314,-150.0,0.00030081,2]
[341711076,1731114644324,-150.0,0.00030092,2]
[341711077,1731114644335,-150.0,0.00030095,2]
[341711078,1731114644344,-204.35429077,0.00030096,2]
[341711079,1731114644353,-300.0,0.00030098,2]
[341711080,1731114644364,-818.55,0.000301,2]
[341711081,1731114644373,-398.0,0.000301,14]
[341711082,1731114644383,-797.0,0.000301,14]
[341711083,1731114644392,-150.0,0.000301,2]
[341711084,1731114644402,-196.0,0.000301,14]
[341711085,1731114644412,-150.0,0.000301,2]
[341711086,1731114644422,-1000.0,0.000301,11]
[341711087,1731114644431,-150.0,0.00030102,2]
[341711088,1731114644440,-150.0,0.00030103,2]
[341711089,1731114644449,-6026.3775529,0.00030103,2]
[341711090,1731114644459,-2673.5689824,0.00030103,2]
[341711091,1731114644469,-150.0,0.00030106,2]
[341711092,1731114644478,-412.26295698,0.0003011,2]
[341711093,1731114644487,-412.26295698,0.0003011,2]
[341711094,1731114644497,-158.20639028,0.00030112,2]
[341711095,1731114644507,-558.54222279,0.00030114,2]
[341711096,1731114644517,-200.0,0.00030115,2]
[341711097,1731114644527,-1000.0,0.00030115,2]
[341711098,1731114644537,-151.0,0.00030115,7]
[341711099,1731114644546,-150.0,0.00030115,2]
[341711100,1731114644556,-151.0,0.00030115,7]
[341711101,1731114644565,-151.0,0.00030115,7]
[341711102,1731114644575,-5843.2808111,0.00030115,2]
[341711103,1731114644584,-261.698085,0.00030115,7]
[341711104,1731114644594,-5660.1840693,0.00030115,2]
[341711105,1731114644604,-5477.0873276,0.00030115,2]
[341711106,1731114644613,-5293.9905858,0.00030115,2]
[341711107,1731114644623,-5110.893844,0.00030115,2]
[341711108,1731114644632,-261.698085,0.00030115,7]
[341711109,1731114644642,-151.0,0.00030115,7]
[341711110,1731114644651,-151.0,0.00030115,7]
[341711111,1731114644662,-151.0,0.00030115,7]
[341711112,1731114644671,-338.147333,0.00030115,7]
[341711113,1731114644681,-338.147333,0.00030115,7]
[341711114,1731114644690,-2000.0,0.00030115,2]
[341711115,1731114644699,-151.0,0.00030115,7]
[341711116,1731114644709,-151.0,0.00030115,7]
[341711117,1731114644718,-2359.9206071,0.00030115,2]
[341711118,1731114644727,-2046.2722317,0.00030115,2]
[341711119,1731114644736,-335.154933,0.00030115,7]
[341711120,1731114644744,-1732.6238564,0.00030115,2]
[341711121,1731114644753,-1418.9754811,0.00030115,2]
[341711122,1731114644762,-1105.3271058,0.00030115,2]
[341711123,1731114644771,-335.154933,0.00030115,7]
[341711124,1731114644780,-1728.615732,0.00030115,7]
[341711125,1731114644790,-151.0,0.00030115,7]
[341711126,1731114644798,-1728.615732,0.00030115,7]
[341711127,1731114644807,-151.0,0.00030115,7]
[341711128,1731114644817,-150.0,0.00030117,2]
[341711129,1731114644826,-150.0,0.00030117,2]
[341711130,1731114644836,-150.0,0.00030118,2]
[341711131,1731114644848,-41399.13819488,0.00030119,2]
[341711150,1731114646393,-151.0,0.0003002,7]
[341711152,1731114646402,-1340.94999999,0.00030119,2]
[341711190,1731114824530,158.06,0.00016712,2]
[341711192,1731115055306,155.13,0.00015342,2]
[341711194,1731115265327,6039.0,0.00027,120]
[341711196,1731115507940,1998512.15092304,0.00016,2]
[341711197,1731115507975,357902.60113276,0.00016,2]
[341711198,1731115519582,505.736,9e-05,2]
[341711199,1731115531561,188.96747161,0.000153,2]
[341711200,1731115532274,1915.80120373,0.00027,60]
[341711202,1731115554466,9210.89484104,0.0001892,2]
[341711204,1731115629140,-1119.0,0.000221,2]
[341711205,1731115629161,-153.898,0.00024369,2]
[341711206,1731115629182,-1583.27133525,0.00024777,2]
[341711207,1731115641111,-1632.85226069,0.00024777,2]
[341711213,1731115692608,3950.0,0.0002,2]
[341711214,1731115696150,788.38833662,0.0002,2]
[341711216,1731115709239,150369.26530064,0.0002,2]
[341711233,1731115747171,-173.15415406,0.00024777,2]
[341711234,1731115747194,-297.84275,0.0002661,2]
[341711235,1731115747218,-704.61,0.00026989,2]
[341711254,1731115832189,-150.82,0.00028223,2]
[341711255,1731115832198,-739.8335,0.00028681,2]
[341711256,1731115832207,-150.82,0.00028752,2]
[341711257,1731115832217,-52.75782915,0.00028781,2]
[341711264,1731115838329,-197.24217085,0.00028781,2]
[341711265,1731115838339,-1345.26955838,0.00028842,2]
[341711453,1731115840458,-2961.16044162,0.00028842,2]
[341711455,1731115840468,-290.33,0.00028895,120]
[341711457,1731115840477,-200.0,0.00028896,7]
[341711459,1731115840487,-2064.66,0.00028966,2]
[341711460,1731115840496,-233.97,0.00028987,2]
[341711462,1731115840505,-262.4,0.00029007,120]
[341711464,1731115840514,-1000.0,0.00029038,2]
[341711466,1731115840525,-219.85,0.00029165,30]
[341711468,1731115840535,-704.61,0.00029253,2]
[341711470,1731115840544,-150.82,0.00029281,2]
[341711472,1731115840553,-500.44503906,0.00029491,2]
[341711475,1731115840563,-1794.0,0.00029591,2]
[341711477,1731115840573,-813.0,0.00029591,2]
[341711479,1731115840583,-921.0,0.00029591,2]
[341711480,1731115840592,-1869.734,0.00029591,2]
[341711482,1731115840601,-1258.0,0.00029591,2]
[341711485,1731115840614,-3463.0,0.00029591,2]
[341711486,1731115840624,-673.428,0.00029591,2]
[341711489,1731115840633,-152.054,0.00029591,2]
[341711490,1731115840643,-1253.0,0.00029591,2]
[341711493,1731115840652,-3134.904,0.00029591,2]
[341711495,1731115840661,-633.705,0.00029591,2]
[341711498,1731115840670,-455.572,0.00029591,2]
[341711501,1731115840679,-13623.0,0.00029591,2]
[341711503,1731115840689,-150.82,0.0002981,2]
[341711505,1731115840698,-1640.6193037,0.0002982,2]
[341711507,1731115840711,-359.3806963,0.0002982,2]
[341711509,1731115840720,-150.0,0.00029872,2]
[341711511,1731115840729,-2000.0,0.00029878,15]
[341711513,1731115840738,-5936.25454349,0.000299,2]
[341711515,1731115840747,-158.7254,0.000299,2]
[341711517,1731115840756,-150.0,0.00029906,2]
[341711519,1731115840766,-150.0,0.00029918,2]
[341711521,1731115840775,-150.0,0.00029922,2]
[341711523,1731115840785,-150.0,0.00029954,2]
[341711525,1731115840794,-150.0,0.0002996,2]
[341711527,1731115840803,-150.0,0.00029989,2]
[341711529,1731115840812,-150.0,0.00029997,2]
[341711531,1731115840821,-149.09344229,0.0003,24]
[341711533,1731115840832,-86.54755771,0.0003,24]
[341711535,1731115840841,-510.45244229,0.0003,2]
[341711548,1731115840958,-181.42802897,0.0003,2]
[341711552,1731115840992,155.0,0.000201,2]
[341711556,1731115841016,-1158.0,0.00029591,2]
[341711558,1731115841025,-1308.11952874,0.0003,2]
[341711560,1731115841035,-2210.30399993,0.0003,2]
[341711562,1731115841044,-1500.0,0.00030008,2]
[341711564,1731115841053,-175.13917887,0.00030019,15]
[341711566,1731115841062,-175.13917886,0.00030028,15]
[341711568,1731115841071,-175.13917886,0.00030036,15]
[341711570,1731115841080,-157.39682344,0.00030036,2]
[341711572,1731115841089,-150.0,0.00030046,2]
[341711574,1731115841099,-150.0,0.00030047,2]
[341711575,1731115841108,-150.0,0.00030055,2]
[341711578,1731115841119,-150.0,0.0003006,2]
[341711579,1731115841129,-158.20639028,0.00030067,2]
[341711582,1731115841138,-1500.0,0.00030079,2]
[341711583,1731115841147,-150.0,0.00030089,2]
[341711585,1731115841157,-736.7,0.000301,2]
[341711587,1731115841167,-398.0,0.000301,14]
[341711588,1731115841176,-295.0,0.000301,14]
[341711589,1731115841185,-150.0,0.000301,2]
[341711590,1731115841195,-196.0,0.000301,14]
[341711591,1731115841204,-2937.37424578,0.000301,2]
[341711592,1731115841213,-1000.0,0.000301,11]
[341711593,1731115841222,-779.01,0.00030105,10]
[341711594,1731115841232,-155.8,0.00030109,10]
[341711595,1731115841241,-413.72319614,0.0003011,2]
[341711597,1731115841250,-976.8446388,0.00030112,2]
[341711598,1731115841260,-2878.9846561,0.00030112,2]
[341711600,1731115841269,-1341.8860009,0.00030115,2]
[341711602,1731115841279,-1706.927363,0.00030115,2]
[341711604,1731115841288,-2071.9687251,0.00030115,2]
[341711606,1731115841298,-2437.0100873,0.00030115,2]
[341711608,1731115841307,-2802.0514494,0.00030115,2]
[341711610,1731115841317,-3954.845073,0.00030115,2]
[341711612,1731115841326,-5030.70549,0.00030115,2]
[341711614,1731115841335,-2155.97191467,0.00030115,2]
[341711822,1731115843261,-285.33454003,0.00029435,2]
[341711824,1731115843270,-2467.30116522,0.00030115,2]
[341711826,1731115843282,-270.98,0.00030115,2]
[341711859,1731115843639,-1911.625,0.00029462,2]
[341711860,1731115843648,-1212.31282701,0.00030115,2]
[341711861,1731115843658,-7182.4263239,0.00030115,2]
[341711862,1731115843667,-8258.2867408,0.00030115,2]
[341711864,1731115843676,-558.54222279,0.00030118,2]
[341711866,1731115843686,-500.0,0.00030118,2]
[341711868,1731115843695,-161.81719599,0.00030118,2]
[341711870,1731115843704,-501.12696387,0.00030119,7]
[341711872,1731115843713,-500.0,0.00030119,2]
[341711874,1731115843723,-359.85972499,0.00030119,2]
[341711876,1731115843732,-500.0,0.00030119,2]
[341711878,1731115843741,-250.0,0.00030119,2]
[341711880,1731115843750,-150.0,0.00030119,30]
[341711882,1731115843759,-200.0,0.00030119,2]
[341711884,1731115843769,-1000.0,0.00030119,2]
[341711886,1731115843778,-1091.06,0.00030119,2]
[341711888,1731115843787,-1091.06,0.00030119,2]
[341711890,1731115843796,-1091.06,0.00030119,2]
[341711892,1731115843806,-1091.06,0.00030119,2]
[341711894,1731115843815,-1091.06,0.00030119,2]
[341711896,1731115843824,-1091.06,0.00030119,2]